fUSD/lending_fUSD_20260405
["ID","MTS","AMOUNT","RATE_DAILY","PERIOD"]
[419838078,1775409056858,-151.0,0.00015387,2]
[419838079,1775409056868,-150.0,0.00015389,2]
[419838080,1775409056877,-150.0,0.00015392,2]
[419838081,1775409056886,-150.0,0.00015396,2]
[419838082,1775409056897,-150.0,0.000154,2]
[419838083,1775409056907,-150.0,0.000154,2]
[419838084,1775409056917,-512.60947705,0.000154,2]
[419838085,1775409056926,-150.0,0.00015413,2]
[419838086,1775409056936,-150.0,0.00015413,2]
[419838087,1775409056945,-150.0,0.00015414,2]
[419838088,1775409056955,-150.0,0.00015418,2]
[419838089,1775409056964,-150.0,0.00015424,2]
[419838090,1775409056975,-150.0,0.00015429,2]
[419838091,1775409056984,-150.0,0.00015429,2]
[419838092,1775409056994,-150.0,0.00015431,2]
[419838093,1775409057004,-150.0,0.00015435,2]
[419838094,1775409057013,-150.0,0.00015437,2]
[419838095,1775409057023,-11046.30350255,0.00015442,2]
[419838096,1775409057033,-500.0,0.00015442,2]
[419838097,1775409057042,-151.0,0.00015442,2]
[419838098,1775409057052,-150.0,0.00015447,2]
[419838099,1775409057062,-150.0,0.00015449,2]
[419838100,1775409057071,-150.0,0.00015457,2]
[419838101,1775409057081,-150.0,0.00015457,2]
[419838102,1775409057090,-150.0,0.00015459,2]
[419838103,1775409057100,-511.0576774,0.00015467,2]
[419838104,1775409057110,-150.0,0.00015467,2]
[419838105,1775409057119,-150.0,0.00015467,2]
[419838106,1775409057129,-150.0,0.00015467,2]
[419838107,1775409057138,-350.0,0.00015467,2]
[419838108,1775409057148,-157.39168565,0.00015471,2]
[419838109,1775409057158,-8818.7,0.00015471,2]
[419838110,1775409057168,-2979.4,0.00015471,2]
[419838111,1775409057177,-6902.01,0.00015471,2]
[419838112,1775409057187,-28985.77,0.00015471,2]
[419838113,1775409057196,-3062.66,0.00015471,2]
[419838114,1775409057207,-150.0,0.00015476,2]
[419838115,1775409057217,-150.0,0.00015482,2]
[419838116,1775409057227,-150.0,0.00015484,2]
[419838117,1775409057236,-150.0,0.00015486,2]
[419838118,1775409057246,-150.0,0.00015486,2]
[419838119,1775409057255,-205.47928112,0.00015487,2]
[419838120,1775409057265,-1373.3451936,0.00015487,2]
[419838121,1775409057275,-150.0,0.00015488,2]
[419838122,1775409057284,-11455.01673214,0.00015497,2]
[419838123,1775409057294,-500.0,0.00015497,2]
[419838124,1775409057304,-151.0,0.00015497,2]
[419838125,1775409057314,-243.8637,0.000155,2]
[419838126,1775409057323,-1661.34286454,0.000155,3]
[419838127,1775409057333,-5643.7200837,0.000155,3]
[419838128,1775409057343,-1231.52674065,0.000155,2]
[419838129,1775409057353,-150.0,0.00015502,2]
[419838130,1775409057363,-903.49,0.00015504,2]
[419838131,1775409057372,-150.0,0.00015504,2]
[419838132,1775409057382,-150.0,0.00015505,2]
[419838133,1775409057392,-4000.0,0.00015507,2]
[419838134,1775409057402,-150.0,0.00015514,2]
[419838135,1775409057411,-150.0,0.00015514,2]
[419838136,1775409057422,-150.0,0.0001552,2]
[419838137,1775409057432,-150.0,0.0001552,2]
[419838138,1775409057443,-5888.0,0.00015526,2]
[419838139,1775409057453,-150.0,0.00015527,2]
[419838140,1775409057462,-150.0,0.00015529,2]
[419838141,1775409057472,-150.0,0.00015535,2]
[419838142,1775409057484,-150.0,0.00015538,2]
[419838143,1775409057495,-150.0,0.00015543,2]
[419838144,1775409057505,-150.0,0.00015543,2]
[419838145,1775409057515,-150.0,0.00015549,2]
[419838146,1775409057524,-150.0,0.00015552,2]
[419838147,1775409057535,-1443.46790256,0.00015552,2]
[419838148,1775409057545,-500.0,0.00015552,2]
[419838149,1775409057554,-151.0,0.00015552,2]
[419838150,1775409057565,-535.0,0.00015552,2]
[419838151,1775409057574,-150.0,0.00015556,2]
[419838152,1775409057584,-494.232921,0.0001556,2]
[419838153,1775409057593,-150.0,0.00015564,2]
[419838154,1775409057603,-150.0,0.00015571,2]
[419838155,1775409057613,-150.0,0.00015571,2]
[419838156,1775409057623,-150.0,0.00015572,2]
[419838157,1775409057632,-150.0,0.00015573,2]
[419838158,1775409057644,-150.0,0.00015573,2]
[419838159,1775409057654,-350.0,0.00015579,3]
[419838160,1775409057664,-150.0,0.00015591,2]
[419838161,1775409057675,-150.0,0.00015593,2]
[419838162,1775409057686,-150.0,0.00015594,2]
[419838163,1775409057697,-150.0,0.000156,2]
[419838164,1775409057708,-150.0,0.000156,2]
[419838165,1775409057718,-150.0,0.000156,2]
[419838166,1775409057727,-150.0,0.000156,2]
[419838167,1775409057737,-500.0,0.00015607,2]
[419838168,1775409057749,-151.0,0.00015607,2]
[419838169,1775409057761,-150.0,0.00015609,2]
[419838170,1775409057771,-592.95618555,0.00015613,2]
[419838171,1775409057783,-150.0,0.00015616,2]
[419838172,1775409057793,-150.0,0.00015617,2]
[419838173,1775409057803,-150.0,0.00015622,2]
[419838174,1775409057812,-150.0,0.00015624,2]
[419838175,1775409057822,-150.0,0.00015627,2]
[419838176,1775409057831,-150.0,0.00015627,2]
[419838177,1775409057840,-150.0,0.00015629,2]
[419838178,1775409057850,-150.0,0.00015629,2]
[419838179,1775409057860,-733.77686062,0.00015634,2]
[419838180,1775409057870,-584.5163828,0.00015635,2]
[419838181,1775409057881,-5888.0,0.00015635,2]
[419838182,1775409057891,-350.0,0.00015639,3]
[419838183,1775409057902,-150.0,0.00015639,2]
[419838184,1775409057913,-150.0,0.00015644,2]
[419838185,1775409057923,-150.0,0.00015651,2]
[419838186,1775409057935,-150.0,0.00015657,2]
[419838187,1775409057945,-150.0,0.00015657,2]
[419838188,1775409057955,-150.0,0.00015662,2]
[419838189,1775409057964,-150.0,0.00015662,2]
[419838190,1775409058344,-500.0,0.00015662,2]
[419838191,1775409058378,-151.0,0.00015662,2]
[419838192,1775409058389,-500.0,0.00015679,2]
[419838193,1775409058398,-2218.13051349,0.0001568,2]
[419838194,1775409058408,-150.0,0.0001568,2]
[419838195,1775409058419,-150.0,0.0001568,2]
[419838196,1775409058429,-150.0,0.0001568,2]
[419838197,1775409058442,-150.0,0.0001568,2]
[419838198,1775409058453,-1051.64672967,0.0001568,2]
[419838199,1775409058463,-1123.96936828,0.0001568,2]
[419838200,1775409058473,-1063.57723515,0.0001568,2]
[419838201,1775409058484,-150.0,0.00015685,2]
[419838202,1775409058494,-150.0,0.00015686,2]
[419838203,1775409058504,-150.0,0.00015686,2]
[419838204,1775409058514,-150.0,0.00015698,2]
[419838205,1775409058523,-165.5061,0.000157,2]
[419838206,1775409058533,-10000.0,0.000157,2]
[419838207,1775409058543,-1173.58370412,0.00015701,2]
[419838208,1775409058552,-150.0,0.00015707,2]
[419838209,1775409058562,-150.0,0.00015709,2]
[419838210,1775409058571,-150.0,0.00015714,2]
[419838211,1775409058581,-150.0,0.00015714,2]
[419838212,1775409058591,-1428.38747117,0.00015715,2]
[419838213,1775409058601,-209.40437684,0.00015715,2]
[419838214,1775409058611,-209.40437684,0.00015715,2]
[419838215,1775409058622,-771.01748645,0.00015715,2]
[419838216,1775409058632,-693.3919763,0.00015715,2]
[419838217,1775409058642,-181.08010149,0.00015715,2]
[419838218,1775409058652,-290.26104003,0.00015715,2]
[419838219,1775409058662,-150.0,0.00015716,2]
[419838220,1775409058672,-500.0,0.00015717,2]
[419838221,1775409058682,-151.0,0.00015717,2]
[419838222,1775409058692,-150.0,0.00015718,2]
[419838223,1775409058702,-150.0,0.0001573,2]
[419838224,1775409058712,-1000.0,0.00015731,2]
[419838225,1775409058722,-150.0,0.00015733,2]
[419838226,1775409058732,-150.0,0.00015733,2]
[419838227,1775409058741,-150.0,0.00015733,2]
[419838228,1775409058751,-150.0,0.00015738,2]
[419838229,1775409058761,-150.0,0.00015739,2]
[419838230,1775409058771,-150.0,0.00015743,2]
[419838231,1775409058781,-150.0,0.00015743,2]
[419838232,1775409058791,-150.0,0.00015744,2]
[419838233,1775409058801,-150.0,0.00015751,2]
[419838234,1775409058811,-150.0,0.00015752,2]
[419838235,1775409058821,-5957.33,0.00015753,2]
[419838236,1775409058831,-1000.0,0.00015763,2]
[419838237,1775409058841,-150.0,0.00015767,2]
[419838238,1775409058851,-150.0,0.00015769,2]
[419838239,1775409058861,-150.0,0.00015771,2]
[419838240,1775409058871,-150.0,0.00015771,2]
[419838241,1775409058881,-1000.0,0.00015772,2]
[419838242,1775409058891,-500.0,0.00015772,2]
[419838243,1775409058901,-151.0,0.00015772,2]
[419838244,1775409058911,-1000.0,0.00015774,2]
[419838245,1775409058921,-150.0,0.00015775,2]
[419838246,1775409058931,-1000.0,0.00015779,2]
[419838247,1775409058940,-1000.0,0.0001578,2]
[419838248,1775409058951,-150.0,0.00015787,2]
[419838249,1775409058960,-150.0,0.00015787,2]
[419838250,1775409058970,-1000.0,0.00015789,2]
[419838251,1775409058980,-1000.0,0.00015792,2]
[419838252,1775409058990,-500.0,0.00015793,2]
[419838253,1775409059000,-1000.0,0.00015794,2]
[419838254,1775409059010,-150.0,0.00015796,2]
[419838255,1775409059021,-150.0,0.00015797,2]
[419838256,1775409059030,-150.0,0.000158,2]
[419838257,1775409059041,-150.0,0.000158,2]
[419838258,1775409059051,-3200.0,0.000158,2]
[419838259,1775409059061,-2000.0,0.00015801,2]
[419838260,1775409059071,-1000.0,0.00015802,2]
[419838261,1775409059080,-150.0,0.00015804,2]
[419838262,1775409059090,-150.0,0.00015808,2]
[419838263,1775409059101,-1000.0,0.00015809,2]
[419838264,1775409059110,-150.0,0.00015812,2]
[419838265,1775409059120,-2169.16586048,0.00015812,2]
[419838266,1775409059130,-156.39702061,0.00015817,2]
[419838267,1775409059140,-1000.0,0.00015819,2]
[419838268,1775409059149,-150.0,0.0001582,2]
[419838269,1775409059159,-150.0,0.00015821,2]
[419838270,1775409059168,-228.61,0.00015822,2]
[419838271,1775409059178,-150.0,0.00015822,2]
[419838272,1775409059188,-150.0,0.00015825,2]
[419838273,1775409059197,-150.0,0.00015826,2]
[419838274,1775409059207,-2000.0,0.00015826,2]
[419838275,1775409059217,-2000.0,0.00015826,2]
[419838276,1775409059227,-2000.0,0.00015826,2]
[419838277,1775409059236,-2000.0,0.00015826,2]
[419838278,1775409059246,-2000.0,0.00015826,2]
[419838279,1775409059256,-2000.0,0.00015826,2]
[419838280,1775409059266,-2000.0,0.00015826,2]
[419838281,1775409059275,-2000.0,0.00015826,2]
[419838282,1775409059285,-2000.0,0.00015826,2]
[419838283,1775409059294,-2000.0,0.00015826,2]
[419838284,1775409059303,-2000.0,0.00015826,2]
[419838285,1775409059313,-2000.0,0.00015826,2]
[419838286,1775409059323,-2000.0,0.00015826,2]
[419838287,1775409059332,-2000.0,0.00015826,2]
[419838288,1775409059342,-2000.0,0.00015826,2]
[419838289,1775409059352,-2000.0,0.00015826,2]
[419838290,1775409059361,-2000.0,0.00015826,2]
[419838291,1775409059371,-2000.0,0.00015826,2]
[419838292,1775409059382,-2000.0,0.00015826,2]
[419838293,1775409059392,-2039.0,0.00015826,2]
[419838294,1775409059403,-150.0,0.00015829,2]
[419838295,1775409059414,-150.0,0.00015829,2]
[419838296,1775409059424,-282.0,0.00015831,5]
[419838297,1775409059433,-1000.0,0.00015834,2]
[419838298,1775409059443,-1182.33,0.00015839,2]
[419838299,1775409059454,-1182.33,0.00015839,2]
[419838300,1775409059464,-535.65,0.00015839,2]
[419838301,1775409059474,-535.65,0.00015839,2]
[419838302,1775409059483,-500.0,0.00015839,2]
[419838303,1775409059492,-500.0,0.00015839,2]
[419838304,1775409059502,-500.0,0.00015839,2]
[419838305,1775409059512,-500.0,0.00015839,2]
[419838306,1775409059521,-500.0,0.00015839,2]
[419838307,1775409059531,-500.0,0.00015839,2]
[419838308,1775409059540,-500.0,0.00015839,2]
[419838309,1775409059550,-500.0,0.00015839,2]
[419838310,1775409059560,-225841.21728149,0.0001584,2]
[419838311,1775409059571,-166143.042,0.0001584,2]
[419838312,1775409059581,-10000.0,0.0001584,2]
[419838313,1775409059591,-150.0,0.0001584,2]
[419838314,1775409059600,-150.0,0.0001584,2]
[419838315,1775409059610,-652.815241,0.0001584,2]
[419838316,1775409059620,-652.815241,0.0001584,2]
[419838317,1775409059630,-652.815241,0.0001584,2]
[419838318,1775409059640,-652.815241,0.0001584,2]
[419838319,1775409059650,-2000.0,0.0001584,2]
[419838320,1775409059660,-2000.0,0.0001584,2]
[419838321,1775409059669,-518.811803,0.0001584,2]
[419838322,1775409059679,-518.811803,0.0001584,2]
[419838323,1775409059688,-518.811803,0.0001584,2]
[419838324,1775409059698,-518.811803,0.0001584,2]
[419838325,1775409059709,-636.073718,0.0001584,2]
[419838326,1775409059719,-636.073718,0.0001584,2]
[419838327,1775409059728,-636.073718,0.0001584,2]
[419838328,1775409059738,-636.073718,0.0001584,2]
[419838329,1775409059748,-150.0,0.00015842,2]
[419838330,1775409059758,-228.61,0.00015843,2]
[419838331,1775409059767,-2000.0,0.0001585,2]
[419838332,1775409059777,-150.0,0.00015855,2]
[419838333,1775409059787,-1000.0,0.00015857,2]
[419838334,1775409059798,-150.0,0.00015857,2]
[419838335,1775409059808,-150.0,0.00015857,2]
[419838336,1775409059818,-150.0,0.00015858,2]
[419838337,1775409059827,-1000.0,0.00015859,2]
[419838338,1775409059837,-364.40328381,0.00015862,7]
[419838339,1775409059847,-150.0,0.00015865,2]
[419838340,1775409059857,-228.60240665,0.00015865,2]
[419838341,1775409059867,-4323.0,0.00015867,5]
[419838342,1775409059877,-500.0,0.00015871,2]
[419838343,1775409059886,-200.0,0.00015871,2]
[419838344,1775409059896,-500.0,0.00015872,2]
[419838345,1775409059905,-200.0,0.00015872,2]
[419838346,1775409059915,-500.0,0.00015872,2]
[419838347,1775409059925,-500.0,0.00015872,2]
[419838348,1775409059936,-500.0,0.00015872,2]
[419838349,1775409059946,-200.0,0.00015872,2]
[419838350,1775409059956,-200.0,0.00015872,2]
[419838351,1775409059967,-150.0,0.00015872,2]
[419838352,1775409059977,-150.0,0.00015876,2]
[419838353,1775409059986,-5888.0,0.0001588,2]
[419838354,1775409059996,-150.0,0.00015884,2]
[419838355,1775409060007,-150.0,0.00015886,2]
[419838356,1775409060017,-150.0,0.00015886,2]
[419838357,1775409060027,-1000.0,0.00015887,2]
[419838358,1775409060036,-150.0,0.00015887,2]
[419838359,1775409060047,-1059.93455891,0.00015888,2]
[419838360,1775409060058,-1000.0,0.00015888,2]
[419838361,1775409060069,-2000.0,0.0001589,2]
[419838362,1775409060080,-1000.0,0.0001589,2]
[419838363,1775409060091,-762.51968471,0.0001589,2]
[419838364,1775409060101,-1065.40450783,0.0001589,2]
[419838365,1775409060112,-2509.3602543,0.0001589,2]
[419838366,1775409060122,-2500.0,0.0001589,2]
[419838367,1775409060133,-502.58762782,0.0001589,2]
[419838368,1775409060144,-950.63286364,0.0001589,2]
[419838369,1775409060159,-2006.37622858,0.0001589,2]
[419838370,1775409060172,-2447.77606198,0.0001589,2]
[419838371,1775409060182,-2500.0,0.0001589,2]
[419838372,1775409060193,-2500.0,0.0001589,2]
[419838373,1775409060202,-2500.0,0.0001589,2]
[419838374,1775409060216,-1100.33490613,0.0001589,2]
[419838375,1775409060227,-823.00574972,0.0001589,2]
[419838376,1775409060238,-2500.0,0.0001589,2]
[419838377,1775409060248,-2500.0,0.0001589,2]
[419838378,1775409060259,-424.14287076,0.00015893,2]
[419838379,1775409060270,-1000.0,0.00015893,2]
[419838380,1775409060280,-150.0,0.00015893,2]
[419838381,1775409060294,-150.0,0.00015893,2]
[419838382,1775409060304,-4000.0,0.00015895,2]
[419838383,1775409060314,-1182.33,0.00015899,2]
[419838384,1775409060324,-1182.33,0.00015899,2]
[419838385,1775409060333,-535.65,0.00015899,2]
[419838386,1775409060343,-535.65,0.00015899,2]
[419838387,1775409060353,-500.0,0.00015899,2]
[419838388,1775409060363,-481.06713155,0.00015899,2]
[419838389,1775409060374,-500.0,0.00015899,2]
[419838390,1775409060383,-500.0,0.00015899,2]
[419838391,1775409060393,-500.0,0.00015899,2]
[419838392,1775409060403,-500.0,0.00015899,2]
[419838393,1775409060412,-53617.5036391,0.00015899,2]
[419838394,1775409060423,-500.0,0.00015899,2]
[419838395,1775409060432,-160.9517,0.000159,2]
[419838396,1775409060443,-160.9517,0.000159,2]
[419838397,1775409060453,-160.9517,0.000159,2]
[419838398,1775409060464,-160.9517,0.000159,2]
[419838399,1775409060475,-160.9517,0.000159,2]
[419838400,1775409060485,-160.9517,0.000159,2]
[419838401,1775409060499,-160.9517,0.000159,2]
[419838402,1775409060509,-160.9517,0.000159,2]
[419838403,1775409060519,-160.9517,0.000159,2]
[419838404,1775409060529,-160.9517,0.000159,2]
[419838405,1775409060539,-160.9517,0.000159,2]
[419838406,1775409060549,-160.9517,0.000159,2]
[419838407,1775409060559,-160.9517,0.000159,2]
[419838408,1775409060569,-160.9517,0.000159,2]
[419838409,1775409060579,-160.9517,0.000159,2]
[419838410,1775409060589,-160.9517,0.000159,2]
[419838411,1775409060598,-160.9517,0.000159,2]
[419838412,1775409060609,-160.9517,0.000159,2]
[419838413,1775409060619,-160.9517,0.000159,2]
[419838414,1775409060629,-160.9517,0.000159,2]
[419838415,1775409060640,-160.9517,0.000159,2]
[419838416,1775409060651,-160.9517,0.000159,2]
[419838417,1775409060660,-165.5061,0.000159,2]
[419838418,1775409060670,-165.5061,0.000159,2]
[419838419,1775409060680,-167.9673,0.000159,2]
[419838420,1775409060690,-167.9673,0.000159,2]
[419838421,1775409060701,-500.0,0.000159,2]
[419838422,1775409060712,-150.0,0.000159,2]
[419838423,1775409060722,-150.0,0.000159,2]
[419838424,1775409060732,-151.0,0.000159,2]
[419838425,1775409060741,-151.0,0.000159,2]
[419838426,1775409060751,-25000.0,0.000159,3]
[419838427,1775409060761,-150.0,0.000159,2]
[419838428,1775409060772,-151.0,0.000159,2]
[419838429,1775409060781,-151.0,0.000159,2]
[419838430,1775409060913,-151.0,0.000159,2]
[419838431,1775409060923,-209.75164,0.000159,2]
[419838432,1775409060933,-150.0,0.000159,2]
[419838433,1775409060942,-150.0,0.000159,2]
[419838434,1775409060951,-150.0,0.000159,2]
[419838435,1775409060961,-150.0,0.000159,2]
[419838436,1775409060971,-2201.0,0.000159,2]
[419838437,1775409060980,-500.0,0.000159,2]
[419838438,1775409060990,-2201.0,0.000159,2]
[419838439,1775409060999,-500.0,0.000159,2]
[419838440,1775409061008,-2201.0,0.000159,2]
[419838441,1775409061019,-500.0,0.000159,2]
[419838442,1775409061029,-50154.49209134,0.000159,2]
[419838443,1775409061040,-2201.0,0.000159,2]
[419838444,1775409061050,-500.0,0.000159,2]
[419838445,1775409061059,-2201.0,0.000159,2]
[419838446,1775409061069,-500.0,0.000159,2]
[419838447,1775409061079,-2201.0,0.000159,2]
[419838448,1775409061088,-500.0,0.000159,2]
[419838449,1775409061098,-2201.0,0.000159,2]
[419838450,1775409061109,-500.0,0.000159,2]
[419838451,1775409061121,-2201.0,0.000159,2]
[419838452,1775409061131,-500.0,0.000159,2]
[419838453,1775409061141,-2201.0,0.000159,2]
[419838454,1775409061151,-500.0,0.000159,2]
[419838455,1775409061160,-2201.0,0.000159,2]
[419838456,1775409061170,-500.0,0.000159,2]
[419838457,1775409061179,-2201.0,0.000159,2]
[419838458,1775409061190,-500.0,0.000159,2]
[419838459,1775409061199,-500.0,0.000159,2]
[419838460,1775409061208,-2201.0,0.000159,2]
[419838461,1775409061218,-500.0,0.000159,2]
[419838462,1775409061227,-2201.0,0.000159,2]
[419838463,1775409061236,-500.0,0.000159,2]
[419838464,1775409061246,-2201.0,0.000159,2]
[419838465,1775409061255,-338.15756367,0.000159,2]
[419838466,1775409061264,-2201.0,0.000159,2]
[419838467,1775409061275,-2201.0,0.000159,2]
[419838468,1775409061284,-2201.0,0.000159,2]
[419838469,1775409061293,-2201.0,0.000159,2]
[419838470,1775409061303,-2201.0,0.000159,2]
[419838471,1775409061312,-2201.0,0.000159,2]
[419838472,1775409061322,-2201.0,0.000159,2]
[419838473,1775409061331,-2201.0,0.000159,2]
[419838474,1775409061340,-2201.0,0.000159,2]
[419838475,1775409061350,-2220.20664146,0.000159,2]
[419838476,1775409061359,-64484.57407286,0.000159,2]
[419838477,1775409061368,-150.0,0.000159,2]
[419838478,1775409061378,-264429.09383394,0.000159,5]
[419838479,1775409061388,-500.0,0.000159,2]
[419838480,1775409061397,-500.0,0.000159,2]
[419838481,1775409061407,-500.0,0.000159,2]
[419838482,1775409061417,-500.0,0.000159,2]
[419838483,1775409061427,-500.0,0.000159,2]
[419838484,1775409061436,-500.0,0.000159,2]
[419838485,1775409061445,-500.0,0.000159,2]
[419838486,1775409061454,-500.0,0.000159,2]
[419838487,1775409061464,-500.0,0.000159,2]
[419838488,1775409061474,-500.0,0.000159,2]
[419838489,1775409061483,-500.0,0.000159,2]
[419838490,1775409061493,-500.0,0.000159,2]
[419838491,1775409061503,-615.77009816,0.000159,2]
[419838492,1775409061512,-150.0,0.000159,2]
[419838493,1775409061522,-191.24484675,0.000159,2]
[419838494,1775409061531,-25000.0,0.000159,3]
[419838495,1775409061540,-73873.79423819,0.000159,2]
[419838496,1775409061549,-210.48799529,0.000159,2]
[419838497,1775409061559,-15523.38144374,0.000159,2]
[419838498,1775409061568,-151.0,0.000159,2]
[419838499,1775409061577,-151.0,0.000159,2]
[419838500,1775409061587,-151.0,0.000159,2]
[419838501,1775409061596,-151.0,0.000159,2]
[419838502,1775409061605,-2000.0,0.00015901,2]
[419838503,1775409061615,-150.0,0.00015906,2]
[419838504,1775409061624,-500.0,0.00015909,2]
[419838505,1775409061634,-150.0,0.0001591,2]
[419838506,1775409061643,-1000.0,0.00015911,2]
[419838507,1775409061652,-150.0,0.00015911,2]
[419838508,1775409061662,-150.0,0.00015913,2]
[419838509,1775409061672,-336.372262,0.00015914,7]
[419838510,1775409061682,-150.0,0.00015914,2]
[419838511,1775409061692,-150.0,0.00015914,2]
[419838512,1775409061701,-150.0,0.00015917,2]
[419838513,1775409061711,-1000.0,0.00015917,2]
[419838514,1775409061720,-150.0,0.00015929,2]
[419838515,1775409061729,-150.0,0.0001593,2]
[419838516,1775409061739,-1000.0,0.00015932,2]
[419838517,1775409061748,-1000.0,0.00015932,2]
[419838518,1775409061758,-150.0,0.00015932,2]
[419838519,1775409061767,-150.0,0.00015936,2]
[419838520,1775409061777,-1000.0,0.00015938,2]
[419838521,1775409061787,-150.0,0.00015942,2]
[419838522,1775409061796,-150.0,0.00015943,2]
[419838523,1775409061806,-150.0,0.00015943,2]
[419838524,1775409061816,-250.0,0.00015945,2]
[419838525,1775409061826,-155.09,0.00015945,2]
[419838526,1775409061836,-150.0,0.00015947,2]
[419838527,1775409061845,-150.0,0.00015947,2]
[419838528,1775409061855,-1000.0,0.00015947,2]
[419838529,1775409061864,-505.08190528,0.0001595,2]
[419838530,1775409061874,-150.0,0.00015955,2]
[419838531,1775409061884,-150.0,0.00015955,2]
[419838532,1775409061894,-530.36568716,0.00015956,2]
[419838533,1775409061903,-3716.00442167,0.0001596,2]
[419838534,1775409061912,-150.0,0.00015964,2]
[419838535,1775409061921,-150.0,0.00015971,2]
[419838536,1775409061930,-150.0,0.00015971,2]
[419838537,1775409061939,-150.0,0.00015971,2]
[419838538,1775409061949,-11870.0,0.00015973,2]
[419838539,1775409061959,-500.0,0.00015973,2]
[419838540,1775409061970,-4145.0361437,0.00015977,2]
[419838541,1775409061979,-150.0,0.00015977,2]
[419838542,1775409061988,-150.0,0.00015982,2]
[419838543,1775409061997,-1000.0,0.00015988,2]
[419838544,1775409062006,-1000.0,0.00015991,2]
[419838545,1775409062015,-1000.0,0.00015993,2]
[419838546,1775409062024,-262.0,0.00015994,2]
[419838547,1775409062034,-1182.33,0.00015996,2]
[419838548,1775409062043,-535.65,0.00015996,2]
[419838549,1775409062052,-307.6298975,0.00015996,2]
[419838550,1775409062061,-500.0,0.00015996,2]
[419838551,1775409062071,-500.0,0.00015996,2]
[419838552,1775409062081,-250.043657,0.00015997,2]
[419838553,1775409062090,-41238.0059479,0.00015997,2]
[419838554,1775409062099,-1270.261854,0.00015997,2]
[419838555,1775409062109,-1270.261854,0.00015997,2]
[419838556,1775409062119,-1270.261854,0.00015997,2]
[419838557,1775409062128,-1270.261854,0.00015997,2]
[419838558,1775409062138,-539.252182,0.00015997,2]
[419838559,1775409062147,-539.252182,0.00015997,2]
[419838560,1775409062157,-539.252182,0.00015997,2]
[419838561,1775409062166,-539.252182,0.00015997,2]
[419838562,1775409062175,-518.811803,0.00015997,2]
[419838563,1775409062185,-518.811803,0.00015997,2]
[419838564,1775409062194,-518.811803,0.00015997,2]
[419838565,1775409062203,-518.811803,0.00015997,2]
[419838566,1775409062214,-636.073718,0.00015997,2]
[419838567,1775409062223,-636.073718,0.00015997,2]
[419838568,1775409062233,-636.073718,0.00015997,2]
[419838569,1775409062242,-636.073718,0.00015997,2]
[419838570,1775409062252,-666.0,0.00015999,2]
[419838571,1775409062262,-666.0,0.00015999,2]
[419838572,1775409062271,-666.0,0.00015999,2]
[419838573,1775409062280,-1182.33,0.00015999,2]
[419838574,1775409062289,-1182.33,0.00015999,2]
[419838575,1775409062298,-1182.33,0.00015999,2]
[419838576,1775409062307,-1182.33,0.00015999,2]
[419838577,1775409062317,-1182.33,0.00015999,2]